Cogmind - Beta 17.1 @@@ ROGUE MODE // 2026.08.31 @ 13:03:48 Player: Petvaria Result: Destroyed by 6S-66V(E) with Overtuned Barrage Gun Performance ------------- Evolutions (2) 1000 Regions Visited (8) 1600 Robots Destroyed (144) 720 Value Destroyed (4487) 4487 Prototype IDs (32) 640 Alien Tech Used (0) 0 Bonus (10974) 10974 TOTAL SCORE: 19421 Bonus ------- High Alert Combat Kills 22 Follower Combat Kills 769 Prayed to X0-1V1 5000 Major X0-1V1 Interference 5300 Aligned with FarCom 300 Friendly Fire -417 Cogmind --------- Core Integrity 0/425 Matter 556/700 Energy 49/100 System Corruption 0% Temperature Cool (0) Movement Treading (200) Ox1 Location -8/Scraptown Parts ------- > --- POWER (1) -------- (None) > --- PROPULSION (4) --- Light Treads Light Treads Light Treads Light Treads > --- UTILITY (4) ------ Huge Storage Unit Core Analyzer Makeshift Light Armor Plating > --- WEAPON (3) ------- Enhanced Autogun Enhanced Autogun > --- INVENTORY (25) --- Improved Heat Sink Huge Storage Unit Compact Matter Pod (150) Improved Terrain Scan Processor Modified TNC High-powered Tractor Beam Advanced Beam Rifle Advanced Beam Rifle Enhanced Autogun Gauss Cannon Gauss Cannon Peak State ------------ > --- POWER ------------ Light Angular Momentum Engine > --- PROPULSION ------- Light Treads Light Treads Light Treads Light Treads > --- UTILITY ---------- Huge Storage Unit Hardened Medium Armor Plating Reactive Plating X0-1V1's Piety Tracker > --- WEAPON ----------- Beamcaster Guided EMP Blaster > --- INVENTORY -------- Light Nuclear Core Light Treads Light Treads Light Treads Light Treads Light Treads Huge Storage Unit Improved Terrain Scanner Improved Terrain Scan Processor Modified TNC Hardened Medium Armor Plating Hardened Medium Armor Plating Hardened Medium Armor Plating PSU Rigger Heavy Assault Rifle Heavy Assault Rifle High-powered Shotgun High-powered Shotgun High-powered Shotgun Gauss Cannon Gauss Cannon Rocket Launcher Mini Grenade Launcher Improved Datajack Heavy Mace [Rating: 52] Favorites ----------- Power Improved Deuterium Engine Engine Improved Deuterium Engine Power Core Light Nuclear Core Propulsion Light Treads Treads Light Treads Utility Hardened Medium Armor Plating Device X0-1V1's Piety Tracker Storage Huge Storage Unit Processor Core Analyzer Protection Hardened Medium Armor Plating Weapon Enhanced Autogun Energy Gun Medium Laser Ballistic Gun Enhanced Autogun Ballistic Cannon Gauss Cannon Launcher Rocket Launcher Special Weapon CPS Tube Impact Weapon Heavy Mace Build | -11 -10 -10 -10 -9 -8 -8 -8 -8 ------- Run | Yrd Mat Min Exi Min Mat Sto Rec Scr Slots Evolved 4 | . . . . . 4 . . . Power . | . . . . . . . . . Propulsion 1 | . . . . . 1 . . . Utility 2 | . . . . . 2 . . . Weapon 1 | . . . . . 1 . . . Parts Attached 93 | 7 8 4 1 6 18 37 1 11 Power 6 | 1 1 1 . 1 . 1 . 1 Engine 4 | 1 1 . . 1 . 1 . . Core 2 | . . 1 . . . . . 1 Reactor . | . . . . . . . . . Propulsion 32 | 2 1 2 . 2 7 14 1 3 Treads 32 | 2 1 2 . 2 7 14 1 3 Leg . | . . . . . . . . . Wheel . | . . . . . . . . . Hover . | . . . . . . . . . Flight . | . . . . . . . . . Utility 21 | 2 4 1 . 1 5 4 . 4 Device 5 | 1 1 . . . 1 2 . . Storage 3 | 1 1 . . . 1 . . . Processor 1 | . . . . . . . . 1 Hackware . | . . . . . . . . . Protection 12 | . 2 1 . 1 3 2 . 3 Artifact . | . . . . . . . . . Weapon 34 | 2 2 . 1 2 6 18 . 3 Energy Gun 6 | 1 . . . . 1 4 . . Energy Cannon . | . . . . . . . . . Ballistic Gun 20 | 1 1 . . 2 4 10 . 2 Ballistic Cannon 3 | . 1 . . . 1 1 . . Launcher 3 | . . . 1 . . 2 . . Special Weapon 1 | . . . . . . . . 1 Impact Weapon 1 | . . . . . . 1 . . Slashing Weapon . | . . . . . . . . . Piercing Weapon . | . . . . . . . . . Special Melee Weapon . | . . . . . . . . . Unidentified Prototypes 9 | . 1 . . . . 8 . . Corrupted Parts 1 | . . . . . . . . 1 System Corruption 5 | . . . . . . . . 5 Parts Lost 23 | . 1 . . 2 . 4 . 16 Power 3 | . . . . . . 1 . 2 Propulsion 7 | . . . . 1 . . . 6 Utility 8 | . 1 . . . . 3 . 4 Weapon 5 | . . . . 1 . . . 4 Highest Loss Streak 16 | . 1 . . 1 . 3 . 16 To Critical Strikes 1 | . . . . . . . . 1 Average Backups 18 | 5 8 9 10 9 15 23 24 23 Power . | . 1 1 1 1 1 . . . Propulsion 4 | 3 3 1 1 . 2 6 7 6 Utility 6 | . 2 3 4 4 5 7 8 8 Weapon 6 | 1 1 3 4 4 6 9 9 8 Tool/Special . | . . . . . . . . . Unused Backups 29 | . 7 . 1 3 5 4 . 9 Power 2 | . 1 . . 1 . . . . Propulsion 4 | . 4 . . . . . . . Utility 12 | . 1 . 1 1 1 . . 8 Weapon 10 | . 1 . . 1 4 3 . 1 Tool/Special 1 | . . . . . . 1 . . Average Slot Usage (%) 98 | . 99 100 100 99 96 95 100 99 Engine 7 | . 14 1 . 5 8 7 8 7 Core 1 | . . 10 12 6 . . . . Treads 33 | . 28 36 37 37 32 33 33 32 Device 10 | . 12 . . . 7 10 16 15 Storage 9 | . 14 12 12 12 8 8 8 8 Protection 8 | . 1 12 12 12 13 9 8 7 Energy Gun 5 | . 14 11 11 . 7 5 . . Ballistic Gun 16 | . 2 11 11 22 16 17 21 19 Ballistic Cannon 3 | . 11 1 . 1 . . 2 4 Peak Build Rating 52 | 7 20 12 13 19 45 52 48 48 Average Rating 33 | 5 8 11 12 16 40 42 48 46 On Entrance 23 | . 7 20 12 12 19 45 48 48 Avg Prop Armor Cover (%) . | . . . . . . . . . Naked Turns . | . . . . . . . . . Heaviest Build 123 | 14 23 23 24 26 123 123 113 113 Greatest Support 83 | 40 40 60 60 63 83 80 80 80 Greatest Overweight (x) 2 | . . . . . 1 1 1 2 Average Overweight (x) . | . . . . . . 1 1 1 Largest Inventory Capacity 25 | 8 10 10 10 10 25 25 25 25 Average Capacity 19 | 7 9 10 10 10 17 25 25 25 Most Carried 25 | 7 10 10 10 10 25 25 25 25 Average Carried 18 | 5 9 9 10 9 15 24 25 24 Final Capacity 25 | 8 10 10 10 10 25 25 25 25 Final Carried 25 | 6 10 10 10 10 25 25 25 11 Class Distribution -------------------- 62% | Scavenger-Tank 27% | Mutant 6% | Scavenger-Mutant Dominant Class ---------------- Mutant | -10/Materials Mutant | -10/Mines Mutant | -10/Exiles Scavenger-Mutant | -9/Mines Scavenger-Tank | -8/Materials Scavenger-Tank | -8/Storage Scavenger-Tank | -8/Recycling Scavenger-Tank | -8/Scraptown Resources | -11 -10 -10 -10 -9 -8 -8 -8 -8 ----------- Run | Yrd Mat Min Exi Min Mat Sto Rec Scr Matter Collected 4987 | 297 203 113 . 815 1064 1485 262 748 Remotely . | . . . . . . . . . Salvage Created 6297 | 257 542 139 . 234 706 2556 119 1744 Parts 354 | 26 32 7 . 10 51 137 5 86 Haulers Intercepted 10 | . 2 . . . 2 6 . . Recyclers Shooed 5 | . 1 1 . 1 . 2 . . Parts Field Recycled . | . . . . . . . . . Retrieved Matter . | . . . . . . . . . Parts Self-Destructed . | . . . . . . . . . Prevented . | . . . . . . . . . Parts Restored . | . . . . . . . . . Kills | -11 -10 -10 -10 -9 -8 -8 -8 -8 ------- Run | Yrd Mat Min Exi Min Mat Sto Rec Scr Combat Hostiles Destroyed 116 | . 13 5 . 21 11 37 1 28 Guns 69 | . 6 3 . 6 11 33 1 9 Cannons 10 | . 6 . . . . 4 . . AOE 35 | . . 2 . 15 . . . 18 Classes Destroyed 23 | 3 4 . . 2 2 4 . 8 Worker 6 | 2 . . . . . 4 . . Builder 5 | . . . . 2 . 2 1 . Tunneler 8 | 8 . . . . . . . . Hauler 10 | . 2 . . . 2 6 . . Recycler 9 | 1 . . . 2 1 4 1 . Mechanic 1 | . . . . . . 1 . . Operator 3 | . 1 . . . 2 . . . Watcher 3 | . . . . . 1 2 . . Swarmer 13 | . 3 3 . 4 3 . . . Grunt 32 | . 10 2 . . 2 18 . . Duelist 2 | . . . . . . 2 . . Protector 1 | . . . . . . 1 . . Sentry 22 | . . . . . 6 15 1 . Hunter 1 | . . . . . . 1 . . Bolteater 1 | . . . . . . . . 1 Federalist 1 | . . . . . . . . 1 Explorer 1 | . . . . . . . . 1 Ranger 2 | . . . . . . . . 2 Guru 4 | . . . . . . . . 4 Scrapper 9 | . . . . . . . . 9 Elite 8 | . . . . . . . . 8 Assembled 17 | . . . . 17 . . . . Thug 1 | . . . . . . . . 1 Savage 1 | . . . . . . . . 1 Best Kill Streak 20 | 3 3 3 . 20 7 9 2 20 Combat Bots Only 20 | . 3 3 . 17 4 6 1 20 Max Kills in Single Turn 8 | 1 1 2 . 5 1 2 1 8 Gunslinging 1 | . . 1 . . . 1 . 1 Exploded 8 | . . 2 . 4 . . . 8 Melee . | . . . . . . . . . Uniques/NPCs Destroyed 1 | . . . . . . . . 1 Triborg (-8/Scraptown) Combat | -11 -10 -10 -10 -9 -8 -8 -8 -8 -------- Run | Yrd Mat Min Exi Min Mat Sto Rec Scr Hostile Shots Fired 641 | . 63 15 . 40 32 249 6 236 Missed 217 | . 13 6 . 18 9 87 5 79 Hits 424 | . 50 9 . 22 23 162 1 157 Melee 11 | . . . . 5 . 3 . 3 Projectile 413 | . 50 9 . 17 23 159 1 154 Critical Strikes 20 | . 1 . . 3 . 7 . 9 Damage Taken 6895 | . 603 123 . 473 242 2279 13 3162 Core 658 | . 44 . . 74 32 125 . 383 Absorbed by Shields . | . . . . . . . . . Ignored by Resistances 132 | . . . . . 31 101 . . Regen/Repaired (Parts) 489 | . 57 . . . 23 409 . . Core Remaining (%) 89 | 100 . . . 78 . . . . Volleys Fired 323 | 27 49 7 . 37 31 123 9 40 Largest 3 | 2 2 2 . 2 3 3 3 3 Hottest 138 | 70 80 70 . 43 123 138 75 75 Shots Fired 765 | 53 98 14 . 55 87 347 15 96 Gun 686 | 53 77 13 . 35 84 327 9 88 Cannon 51 | . 21 1 . . 3 20 6 . Launcher 27 | . . . . 20 . . . 7 Special 1 | . . . . . . . . 1 Kinetic 524 | 27 49 8 . 35 64 238 15 88 Thermal 213 | 26 49 6 . . 23 109 . . Explosive 20 | . . . . 20 . . . . Electromagnetic 7 | . . . . . . . . 7 Robot Hit Streak 27 | 12 11 7 . 5 24 26 5 27 Robot Miss Streak 4 | 2 3 2 . 3 3 2 2 4 Penetration Max . | . . . . . . . . . Secondary Targets 11 | . 1 1 . . 1 4 . 4 Max Gunslinging Chain 2 | . 1 1 . . 1 1 . 2 Shots Hit Robots 507 | 31 67 8 . 25 55 245 5 71 Core Hits 290 | 15 26 6 . 39 24 100 2 78 Critical Kills . | . . . . . . . . . Critical Parts Destroyed 1 | . . . . . 1 . . . Critical Strikes 17 | . 5 . . . 2 10 . . Burn 14 | . 4 . . . 1 9 . . Destroy 1 | . . . . . 1 . . . Blast 2 | . 1 . . . . 1 . . Melee Attacks 4 | . . . . . . 4 . . Impact 4 | . . . . . . 4 . . Slashing . | . . . . . . . . . Piercing . | . . . . . . . . . Sneak Attacks . | . . . . . . . . . Combat Hostiles . | . . . . . . . . . Follow-up Attacks . | . . . . . . . . . Damage Inflicted 11613 | 322 880 203 . 1331 1007 4470 116 3284 Guns 7710 | 322 632 86 . 281 984 4069 88 1248 Cannons 492 | . 223 20 . . . 249 . . Explosions 3162 | . . 95 . 1031 . . . 2036 Melee . | . . . . . . . . . Ramming 249 | . 25 2 . 19 23 152 28 . Kinetic 5309 | 123 362 56 . 281 616 2535 88 1248 Thermal 3517 | 199 493 145 . . 368 1783 . 529 Explosive 1031 | . . . . 1031 . . . . Electromagnetic 1507 | . . . . . . . . 1507 Impact . | . . . . . . . . . Slashing . | . . . . . . . . . Piercing . | . . . . . . . . . Highest Corruption 8 | . . . . . . . . 8 Average Corruption 4 | . . . . . . . . 4 Corruption Purged . | . . . . . . . . . Corruption Blocked . | . . . . . . . . . Effects 1 | . . . . . . . . 1 Energy Discharges 1 | . . . . . . . . 1 Overload Shots . | . . . . . . . . . Overflow Damage 201 | . . . . 66 . 20 . 115 Projectiles . | . . . . . . . . . Explosions 181 | . . . . 66 . . . 115 Melee 20 | . . . . . . 20 . . Knockbacks 2 | . . 1 . . . 1 . . Impact . | . . . . . . . . . Kinetic 2 | . . 1 . . . 1 . . Secondary . | . . . . . . . . . Self-Inflicted Damage 161 | . . 24 . 84 . . . 53 Shots 6 | . . 1 . 2 . . . 3 Rammed 23 | . 8 3 . 2 3 7 . . Targets Rammed 28 | . 8 3 . 3 3 9 2 . Kicked . | . . . . . . . . . Crushed 5 | . . . . 1 . 2 2 . Highest Temperature 428 | 110 401 77 . 40 162 428 . 301 Average Temperature 84 | 43 138 32 . 10 48 93 . 104 Received Heat Transfer 1980 | . 327 21 . 60 81 897 . 594 Effects 13 | . 5 . . . . 8 . . Shutdowns 2 | . 1 . . . . 1 . . Energy Bleed 3 | . 3 . . . . . . . Interference 6 | . . . . . . 6 . . Short Circuit 2 | . 1 . . . . 1 . . Siege Activations . | . . . . . . . . . Martial Activations . | . . . . . . . . . Shielding Activations . | . . . . . . . . . Robots Disrupted 1 | . . . . . . . . 1 Combat Hostiles 1 | . . . . . . . . 1 Robots Corrupted 2 | . . . . . . 1 . 1 Combat Hostiles 1 | . . . . . . . . 1 Parts Fried 11 | . . . . . . 5 . 6 Impact Corruptions 2 | . . . . . . 2 . . Robots Melted 1 | . 1 . . . . . . . Combat Hostiles 1 | . 1 . . . . . . . Parts Melted 13 | 1 3 . . . 1 4 . 4 Heat Transferred 7521 | 592 1739 248 . . 703 3940 . 299 Parts Sabotaged . | . . . . . . . . . Parts Stolen . | . . . . . . . . . Parts Stripped . | . . . . . . . . . Power Chain Reactions 4 | . . . . . . . . 4 Alert | -11 -10 -10 -10 -9 -8 -8 -8 -8 ------- Run | Yrd Mat Min Exi Min Mat Sto Rec Scr Maximum Alert Level 2 | . . 1 . . . 2 . . Low Security (%) 83 | 100 100 94 . 100 100 51 100 . Level 1 11 | . . 5 . . . 32 . . Level 2 5 | . . . . . . 16 . . Level 3 . | . . . . . . . . . Level 4 . | . . . . . . . . . Level 5 . | . . . . . . . . . High Security . | . . . . . . . . . Max Security . | . . . . . . . . . Peak Influence 464 | 10 170 216 . 149 143 464 192 . Initial 178 | . . 63 . . . 42 178 . Average 103 | 1 22 70 . 27 41 237 55 . Influence Increases 2609 | 55 434 193 . 194 472 1146 115 . Destroy 0b10 Robot/C 1460 | . 260 100 . 80 280 720 20 . Destroy 0b10 Robot/NC 230 | 55 15 . . 20 30 100 10 . Destroy Leader 366 | . 64 20 . 10 86 186 . . Allied During Kill 20 | . . . . . 20 . . . Successful Hack 92 | . 20 . . . 20 33 19 . Select Force Hacks 120 | . 60 . . . . . 60 . Disable Machine 180 | . 15 60 . . 15 90 . . Destroy Structure 126 | . . 13 . 84 6 17 6 . Lose Combat Pursuer 15 | . . . . . 15 . . . Influence Decreases 2609 | 55 272 355 . 194 371 790 572 . Entered New Map 437 | . . 99 . . . 59 279 . Time Decay 2032 | 55 262 256 . 174 305 691 289 . Lost Part 70 | . 10 . . 20 . 40 . . Lost Ally 60 | . . . . . 60 . . . Purge Threat 10 | . . . . . 6 . 4 . Squads Dispatched 8 | . 2 . . . 1 5 . . Investigation 5 | . 2 . . . 1 2 . . Extermination . | . . . . . . . . . Reinforcement 1 | . . . . . . 1 . . Assault 2 | . . . . . . 2 . . Garrison . | . . . . . . . . . Intercept . | . . . . . . . . . Searches Triggered . | . . . . . . . . . Construction Impeded . | . . . . . . . . . Haulers Reinforced . | . . . . . . . . . Active Scanning Responses . | . . . . . . . . . Cargo Convoy Interrupts . | . . . . . . . . . Stealth | -11 -10 -10 -10 -9 -8 -8 -8 -8 --------- Run | Yrd Mat Min Exi Min Mat Sto Rec Scr Distress Signals 6 | . 2 . . . 2 2 . . Communications Jammed . | . . . . . . . . . Distress Signals . | . . . . . . . . . Times Spotted 185 | . 30 6 . 19 23 50 1 56 Peak Tracking Total 24 | . 6 3 . 5 5 6 1 24 Tactical Retreats 4 | . . . . . 1 . . 3 Traps | -11 -10 -10 -10 -9 -8 -8 -8 -8 ------- Run | Yrd Mat Min Exi Min Mat Sto Rec Scr Traps Triggered 1 | . . . . . 1 . . . Indirectly . | . . . . . . . . . Trap Hack Attempts . | . . . . . . . . . Triggered . | . . . . . . . . . Disarmed . | . . . . . . . . . Reprogrammed . | . . . . . . . . . Reused . | . . . . . . . . . Traps Extracted . | . . . . . . . . . Installed . | . . . . . . . . . Triggered . | . . . . . . . . . Machines | -11 -10 -10 -10 -9 -8 -8 -8 -8 ---------- Run | Yrd Mat Min Exi Min Mat Sto Rec Scr Machines Disabled 19 | . 1 4 . . 1 6 . 7 Max in Single Turn 4 | . 1 4 . . 1 1 . 2 Machines Repaired . | . . . . . . . . . Machines Dismantled . | . . . . . . . . . Machines Sabotaged . | . . . . . . . . . Overloaded Fab Kills . | . . . . . . . . . Hacking | -11 -10 -10 -10 -9 -8 -8 -8 -8 --------- Run | Yrd Mat Min Exi Min Mat Sto Rec Scr Machines Accessed 41 | . 11 . 2 . 8 12 8 . Terminals 28 | . 8 . . . 6 8 6 . Fabricators . | . . . . . . . . . Repair Stations 4 | . 1 . . . 1 2 . . Recycling Units 5 | . 2 . . . . 1 2 . Scanalyzers 1 | . . . . . 1 . . . Garrison Access 1 | . . . . . . 1 . . Total Hacks 107 | . 24 . 2 . 27 35 19 . Successful 59 | . 13 . 2 . 19 15 10 . Failed 48 | . 11 . . . 8 20 9 . Catastrophic 7 | . 4 . . . . 2 1 . Database Lockouts . | . . . . . . . . . Manual 69 | . 21 . 1 . 19 10 18 . Terminals 71 | . 19 . . . 21 15 16 . Fabricators . | . . . . . . . . . Repair Stations 18 | . 2 . . . 2 14 . . Recycling Units 10 | . 3 . . . . 4 3 . Scanalyzers 4 | . . . . . 4 . . . Garrison Access 2 | . . . . . . 2 . . Terminal Hacks 13 | . 4 . 2 . 3 2 2 . Record 1 | . . . 1 . . . . . Part Schematic 2 | . 1 . . . . . 1 . Robot Schematic 1 | . 1 . . . . . . . Robot Analysis 1 | . 1 . . . . . . . Open Door 2 | . . . . . . 2 . . Unreport Threat 3 | . . . . . 2 . 1 . Hauler Manifests 2 | . 1 . . . 1 . . . Proto ID Catalog 1 | . . . 1 . . . . . Fabricator Hacks . | . . . . . . . . . Repair Station Hacks 12 | . 2 . . . 2 8 . . Scan Component 6 | . 1 . . . 1 4 . . Repair 6 | . 1 . . . 1 4 . . Recycling Unit Hacks 1 | . . . . . . 1 . . Retrieve Components 1 | . . . . . . 1 . . Scanalyzer 3 | . . . . . 3 . . . Retrieve Study 3 | . . . . . 3 . . . Garrison Access Hacks . | . . . . . . . . . Unauthorized Hacks 30 | . 7 . . . 11 4 8 . Terminals 26 | . 5 . . . 11 4 6 . Botnet 6 | . . . . . 6 . . . Skim 20 | . 5 . . . 5 4 6 . Fabricators . | . . . . . . . . . Repair Stations . | . . . . . . . . . Recycling Units 4 | . 2 . . . . . 2 . Tunnel 4 | . 2 . . . . . 2 . Scanalyzers . | . . . . . . . . . Garrison Access . | . . . . . . . . . Data Cores Recovered 2 | . . . . . 2 . . . Used . | . . . . . . . . . Hacking Detections 26 | . 7 . . . 4 10 5 . Full Trace Events 3 | . . . . . . 2 1 . Feedback Events . | . . . . . . . . . Feedback Blocked . | . . . . . . . . . Robot Schematics Acquired 1 | . 1 . . . . . . . Robots Built . | . . . . . . . . . Authchips . | . . . . . . . . . Time . | . . . . . . . . . Total Robot Build Rating . | . . . . . . . . . Part Schematics Acquired 2 | . 1 . . . . . 1 . Parts Built . | . . . . . . . . . Authchips . | . . . . . . . . . Time . | . . . . . . . . . Total Part Build Rating . | . . . . . . . . . Part Studies Acquired 3 | . . . . . 3 . . . Parts Repaired 6 | . 1 . . . 1 4 . . Time 173 | . 26 . . . 50 97 . . Parts Recycled . | . . . . . . . . . Recycled Matter . | . . . . . . . . . Retrieved Matter . | . . . . . . . . . Retrieved Components 9 | . . . . . . 9 . . Parts Scanalyzed . | . . . . . . . . . Part Schematics Acquired . | . . . . . . . . . Parts Damaged . | . . . . . . . . . Bothacking | -11 -10 -10 -10 -9 -8 -8 -8 -8 ------------ Run | Yrd Mat Min Exi Min Mat Sto Rec Scr Used RIF Installer . | . . . . . . . . . Robots Hacked . | . . . . . . . . . Non-combat . | . . . . . . . . . Combat . | . . . . . . . . . Robot Hacks Applied . | . . . . . . . . . Relay Couplers Released . | . . . . . . . . . Fabnet Peak Effective % . | . . . . . . . . . Robots Rewired . | . . . . . . . . . Allies Hacked . | . . . . . . . . . Hacks Repelled . | . . . . . . . . . Allies | -11 -10 -10 -10 -9 -8 -8 -8 -8 -------- Run | Yrd Mat Min Exi Min Mat Sto Rec Scr Total Allies 11 | . . 2 . 3 . . . 6 Largest Group 3 | . . 2 1 3 3 . . 3 Highest-Rated Group 464 | . . 42 31 40 40 . . 464 Highest-Rated Ally 464 | . . 31 31 16 16 . . 464 Total Orders . | . . . . . . . . . Ally Attacks 100 | . . . . . 55 . . 45 Total Damage 5197 | . . . . . 490 . . 4707 Kills 30 | . . . . . 3 . . 27 Allies Corrupted . | . . . . . . . . . Allies Melted . | . . . . . . . . . X0-1V1 Amusement Gains 155 | . 6 . . 20 5 20 . 104 Average Entertainment 12 | . 6 3 . 22 17 12 4 17 Good Acts 34 | . 2 2 . 2 9 7 7 5 Bad Acts 27 | . . 2 . 4 2 14 1 4 Intel | -11 -10 -10 -10 -9 -8 -8 -8 -8 ------- Run | Yrd Mat Min Exi Min Mat Sto Rec Scr Active Infowar (turns) 1235 | 23 1212 . . . . . . . Seismic 1235 | 23 1212 . . . . . . . Robot Analysis Total 1 | . 1 . . . . . . . Derelict Logs Recovered 6 | . . 3 . 3 . . . . Drone Launches . | . . . . . . . . . Drone Recoveries . | . . . . . . . . . Exploration | -11 -10 -10 -10 -9 -8 -8 -8 -8 ------------- Run | Yrd Mat Min Exi Min Mat Sto Rec Scr Turns Passed 12144 | 310 1475 898 408 941 1028 2811 1195 3078 Spaces Moved 5599 | 141 649 535 251 493 472 1053 555 1450 Core 8 | 8 . . . . . . . . Treads 5591 | 133 649 535 251 493 472 1053 555 1450 Legs . | . . . . . . . . . Wheels . | . . . . . . . . . Hover . | . . . . . . . . . Flight . | . . . . . . . . . Fastest Speed 50 | 50 160 160 160 160 160 200 200 200 Average Speed 183 | 153 160 160 160 160 177 200 200 200 Slowest Speed 240 | 160 160 160 160 160 200 200 200 240 Overloaded Moves . | . . . . . . . . . Propulsion Burnouts . | . . . . . . . . . Robots Hopped . | . . . . . . . . . Potential Cave-ins 4 | . . . . . . . . 4 Cave-ins Triggered . | . . . . . . . . . Exploration Rate (%) 69 | 7 97 92 60 86 40 91 93 59 Regions Visited 8 Branch Regions 6 Pre-discovered Areas 12 | . 2 . 1 3 4 . 2 . Known Exits Taken 5 | . 1 1 . . 1 1 1 . Unknown Exits Taken 3 | 1 . . 1 1 . . . . Scrap Searched 11 | . . 1 . 2 . . . 8 Spaces Dug 10 | . . . . . 2 4 4 . Terrain Destroyed 200 | . . 13 . 165 4 12 6 . Melee . | . . . . . . . . . Projectile 22 | . . . . . 4 12 6 . AOE 178 | . . 13 . 165 . . . . Terrain Rammed . | . . . . . . . . . Walls Destroyed . | . . . . . . . . . Machines Disabled . | . . . . . . . . . Actions | -11 -10 -10 -10 -9 -8 -8 -8 -8 --------- Run | Yrd Mat Min Exi Min Mat Sto Rec Scr Total 6930 | 187 990 560 257 595 612 1519 628 1582 Wait 652 | . 250 4 . 42 33 209 58 56 Move 5591 | 140 648 534 250 492 471 1052 554 1450 Hop . | . . . . . . . . . Pick Up 93 | 13 14 4 2 6 28 19 . 7 Fast Attach 23 | . 1 . . . 7 15 . . Attach 34 | 7 1 1 . 3 2 5 . 15 Detach 2 | . . . . . . 1 . 1 Swap 88 | . 8 5 3 7 15 39 4 7 Drop 92 | . 11 2 2 5 22 43 1 6 Fire 323 | 27 49 7 . 37 31 123 9 40 Melee 4 | . . . . . . 4 . . Ram . | . . . . . . . . . Kick . | . . . . . . . . . Crush 28 | . 8 3 . 3 3 9 2 . Escape Stasis . | . . . . . . . . . Rewire . | . . . . . . . . . Trap . | . . . . . . . . . Miscellaneous . | . . . . . . . . . Route ------- -11/Scrapyard -10/Materials (discovered 6 exits: *Mat x3 / *Min x2 / *Sub) -10/Mines (discovered 4 exits: *Mat x2 / *Exi / *Sub) -10/Exiles -9/Mines (discovered 2 exits: *Mat x2) -8/Materials (discovered 4 exits: Fac x3 / *Sto) -8/Storage (discovered 2 exits: *Fac / *Rec) -8/Recycling (discovered 2 exits: *Fac / *Scr) -8/Scraptown (discovered 1 exit: *Fac) History --------- Turn | Location | Event 4 | -11/Scrapyard | Discovered new exit (range 15) 311 | -11/Scrapyard | Entered Materials 312 | -10/Materials | Build established: Mutant 407 | -10/Materials | Discovered new exit (range 7) 474 | -10/Materials | Discovered new exit (range 14) 614 | -10/Materials | Discovered new exit (range 7) 947 | -10/Materials | Discovered new exit (range 12) 950 | -10/Materials | Discovered new exit (range 7) 954 | -10/Materials | Learned 4 Recycling zone layouts 1024 | -10/Materials | Identified exit to Materials 1024 | -10/Materials | Identified exit to Mines 1024 | -10/Materials | Identified exit to Subcaves 1086 | -10/Materials | Loaded intel: 18 trap records 1140 | -10/Materials | Learned location of 2 exits from Mines 1218 | -10/Materials | Learned 2 Mines zone layouts 1243 | -10/Materials | Learned Storage stockpile data 1279 | -10/Materials | Learned location of 1 exit from Storage 1287 | -10/Materials | Repaired Lgt. Treads 1323 | -10/Materials | Learned Storage stockpile data 1440 | -10/Materials | Learned 4 Subcaves zone layouts 1683 | -10/Materials | Prayed at D.C.S.S. Altar Unit 1712 | -10/Materials | X0-1V1 activates XOMVISION 1761 | -10/Materials | Ranged accuracy permanently improved by X0-1V1 (+5%; -50 max core) 1786 | -10/Materials | Entered Mines 1788 | -10/Mines | Identified exit to Exiles 1831 | -10/Mines | Propulsion slot count permanently improved by X0-1V1 (+1) 1865 | -10/Mines | X0-1V1 upgraded hostiles (x1) 2041 | -10/Mines | Learned Materials emergency access door positions 2100 | -10/Mines | Discovered exit to Materials (range 5) 2107 | -10/Mines | Received a Rocket Launcher from a helpful Derelict 2281 | -10/Mines | Learned Materials stockpile data 2334 | -10/Mines | Deemed a non-threat by the Exiles lab entrance 2596 | -10/Mines | Found a hidden stash of uninstalled traps 2684 | -10/Mines | Entered Exiles 2684 | -10/Exiles | Accompanied by 1 ally 2714 | -10/Exiles | Led the pair of lost Derelicts to a safe place 2723 | -10/Exiles | Met 8R-AWN 2750 | -10/Exiles | Met EX-HEX 2795 | -10/Exiles | Met EX-BIN 2824 | -10/Exiles | Learned location of Zion (-7) 2827 | -10/Exiles | Met EX-DEC 2878 | -10/Exiles | Aligned with FarCom system 2880 | -10/Exiles | Given EX-Vault access code 2918 | -10/Exiles | Opened EX-Vault 2928 | -10/Exiles | Found Modified TNC 2931 | -10/Exiles | Found PSU Rigger 2964 | -10/Exiles | Warned to stay clear of 0b10 Research branches 3076 | -10/Exiles | Discovered new exit (range 10) 3092 | -10/Exiles | Stole two prototypes: Modified TNC, PSU Rigger 3092 | -10/Exiles | Entered Mines 3110 | -9/Mines | Met a Derelict bent on vengeance 3133 | -9/Mines | Assembled infested the area 3138 | -9/Mines | Assisted by a Guerilla fighting off Assembled 3317 | -9/Mines | Destroyed 17 combat bots 3357 | -9/Mines | Discovered new exit (range 11) 3552 | -9/Mines | X0-1V1 vaporized surrounding terrain (radius 15) 3588 | -9/Mines | Build established: Scavenger-Mutant 3693 | -9/Mines | Core integrity restored by X0-1V1 (+30) 3719 | -9/Mines | Learned location of 1 exit from Materials 3735 | -9/Mines | Assisted by bots powering up and referring to "LRC-V3" 3989 | -9/Mines | Learned location of Storage (-8) 3991 | -9/Mines | Discovered new exit (range 12) 4010 | -9/Mines | X0-1V1 vaporized surrounding terrain (radius 15) 4033 | -9/Mines | Entered Materials 4033 | -8/Materials | Accompanied by 3 allies 4033 | -8/Materials | Evolved 4 slots: Propulsion x1, Utility x2, Weapon x1 4034 | -8/Materials | Identified exit to Storage 4035 | -8/Materials | Identified exit to Factory 4332 | -8/Materials | Heat dissipation permanently improved by X0-1V1 (+15; -75 max core) 4493 | -8/Materials | X0-1V1 revealed exit location to -7/Factory 4535 | -8/Materials | Repaired Beamcaster 4590 | -8/Materials | Build established: Scavenger-Tank 4642 | -8/Materials | Learned location of Lower Caves (-6) 4691 | -8/Materials | X0-1V1 put everyone to sleep 4712 | -8/Materials | Learned Storage trap positions 4816 | -8/Materials | Learned Factory emergency access door positions 4854 | -8/Materials | Learned location of 1 exit from Extension 4883 | -8/Materials | Learned 4 Factory zone layouts 4898 | -8/Materials | X0-1V1 revealed exit location to -7/Factory 4901 | -8/Materials | Learned location of Extension (-6) 4927 | -8/Materials | Learned 4 Factory zone layouts 4962 | -8/Materials | Learned Storage terminal intel 5007 | -8/Materials | Learned Storage security intel 5037 | -8/Materials | X0-1V1 activates XOMVISION 5061 | -8/Materials | Learned location of Lower Caves (-7) 5061 | -8/Materials | Entered Storage 5063 | -8/Storage | Loaded intel: 12 trap records 5063 | -8/Storage | FarCom data flow suspended 5065 | -8/Storage | Loaded intel: 11 terminal locations 5107 | -8/Storage | X0-1V1 put everyone to sleep 5241 | -8/Storage | X0-1V1 upgraded hostiles (x1) 5305 | -8/Storage | Found Prototype Launcher 5305 | -8/Storage | Identified Gui. EMP Blaster 5504 | -8/Storage | X0-1V1 caused items to flee you 5665 | -8/Storage | X0-1V1 vaporized surrounding terrain (radius 24) 5769 | -8/Storage | Lost 3 parts (1p2u) 5828 | -8/Storage | Items stopped fleeing you 6010 | -8/Storage | Repaired Lgt. Treads+ 6033 | -8/Storage | X0-1V1 woke everyone up 6037 | -8/Storage | Repaired Lgt. Treads+ 6064 | -8/Storage | Repaired Lgt. Treads+ 6434 | -8/Storage | X0-1V1 sent you into danger 6645 | -8/Storage | X0-1V1 upgraded hostiles (x1) 6789 | -8/Storage | Identified exit to Recycling 6789 | -8/Storage | X0-1V1 revealed exit location to -8/Recycling 6811 | -8/Storage | Core integrity restored by X0-1V1 (+106) 7288 | -8/Storage | X0-1V1 foreshadows a heat wave 7473 | -8/Storage | Repaired Hrd. Medium Armor Plating 7516 | -8/Storage | Ambient heat levels rising (+10) 7624 | -8/Storage | X0-1V1 activates XOMVISION 7861 | -8/Storage | First assault squad dispatched 7864 | -8/Storage | Used back door to open Recycling access 7872 | -8/Storage | Entered Recycling 7873 | -8/Recycling | Identified exit to Scraptown 7964 | -8/Recycling | Identified exit to Factory 7964 | -8/Recycling | X0-1V1 revealed exit location to -6/Factory 8292 | -8/Recycling | X0-1V1 activates XOMVISION 8842 | -8/Recycling | Learned Storage stockpile data 8889 | -8/Recycling | Learned location of 1 exit from Extension 8953 | -8/Recycling | Learned location of 1 exit from Recycling 8959 | -8/Recycling | Scanned before Scraplab entrance 8971 | -8/Recycling | Learned Storage trap positions 8978 | -8/Recycling | Learned Storage trap positions 8987 | -8/Recycling | Entered Scraplab 9055 | -8/Recycling | Learned 4 Factory zone layouts 9067 | -8/Recycling | Entered Scraptown 9149 | -8/Scraptown | Heard Great Nut preacher, LISTEN AND RECITE! 9457 | -8/Scraptown | Visited Comm Corps 9555 | -8/Scraptown | Received an X-ray algorithm 9579 | -8/Scraptown | Visited The Evicted 9619 | -8/Scraptown | Visited Bundlers 9786 | -8/Scraptown | Visited Cave Peace 10292 | -8/Scraptown | Discovered exit to Factory (range 5) 10458 | -8/Scraptown | Visited Fellowship of the Rings 10494 | -8/Scraptown | Turned away by UFD registrar 11712 | -8/Scraptown | X0-1V1 brought Wyrm Statue to life 11712 | -8/Scraptown | Attacked by Scraptown defenders 11924 | -8/Scraptown | Allies destroyed Triborg 12015 | -8/Scraptown | Attached CPS modules to Chaos Wyrm 12040 | -8/Scraptown | X0-1V1 sent you into danger 12059 | -8/Scraptown | X0-1V1 turns hostiles against one another 12086 | -8/Scraptown | Core integrity fell below 50% 12092 | -8/Scraptown | Lost 3 allies 12105 | -8/Scraptown | Destroyed 20 combat bots 12117 | -8/Scraptown | Core integrity fell below 20% 12121 | -8/Scraptown | X0-1V1 sent allied L-31 Rogue (x3) 12145 | -8/Scraptown | Destroyed by 6S-66V(E) with Overtuned Barrage Gun Last Messages --------------- L-31 Rogue destroyed. Penetrated by Slug. Destroyed Imp. Phase Shifter. Slug penetrates Wall. Penetrated by Slug. Critical hit (Destroy). Enh. Autogun destroyed. EL-70E(E) destroyed. Slug penetrates Optimus. EY-OMI(h): "To scrap with you!" Slug penetrates KTG-V3. KTG-V3 destroyed. 48-YP1(E) misfires. Penetrated by Bolt. Lgt. Treads+ destroyed. P3-DVC(E) IFF system glitched. 48-YP1(E) destroyed. Penetrated by Slug. Penetrated by Bolt. X0-1V1 giggles madly! Map ----- +----------------------------------------------------+ | " #### ###??????########## #????#"""""""""" | | " """" ""#???????????????# #????#"""""" "" | | " "#???????????????# #????#" "" "" | | " " "" "#????#####??###?# #????#"" " "" | | " " "" "#????? "" "# #????#" " " | | " " "#???????""" "# #????#"" " | | " ""#????????#" " #????#"" " " | | " " """""#????????#" "# #????#"" " | | " """""""#?????? " " "# #????#"" " " | | " """""""#????# ##" ?# #????#"" "" | | " ########????#" ??#" ?# ############ ### | | " ########???????????""??# | | " #"""X""#?????????? ??# | | " #" "#???????????#???# % [ ! | | #" "#???????????????# = !![==%* | | " #" "#?????????####### ! = ==!%/[ | | " #" "#????????## ==!=! !!=[=== | | """ #" "#????????# =!]% !%[%=!= | | ### #"" """########### M ]!]h =!!!%=! | | ??# #### ! #]!=![!######## | | ### %!??# ! =!=!%%==## | | """ #"" """##"" """### [%!### %% [=%==! !##" | | "" #" "##"" "##;!=%## ; %= [!= ##" ### | | "" #"" "##"" "# #EE3# ! ! % ##" "#"" | | "" #"" "##"" "##!=%!x[=% ! ##" "# | | "" #"" " "##" "#?# =@%%*[[%%! ##" # | | #"""" "##" "#?# ;!![=%= ##" ##+ | | " #""""""##""""""#?# ;! ; ! ##" | | "" #################; ; ; "##"""""" | | "" ########?#####?# ; ## ; # ############ | | "" """""""#?#"""## ; ## # % ;[ /! #??????? | | """ " "#?#" "### # ## # !! = !#?????## | | ### " """ "#?# #? # #?## %"# ! #????""" | | ??# " """ "#?# ##### #??#"" "#! =#????""" | | ### " """ "#?# ##?###########;##??#"""" | | """ " """ "#?# #???????????# | | " " """ "#?# ##??#####???## ##??#"" | | " " """ "#?##### ### ;#??#"""""##""" "#???"""" | | " " """ "#?????# %#?##;???#"" ""##""" "#??????" | | " """ "#######!!####;#??#"" "##""" "#??????? | | " " " """ "##"""""[%"""" #??#" ""##"" "#?###### | | " " " "##"""%" =! #??#"" ""##"" "#?#""""" | | " """""""##" =!! #??#"" ""# "#?#""[ | | """ #########"""""/!"""" #??#" # ###""![= | | ### ##??????######!%######### # = ###"" | | ?# ############# [#######"# = ##""" " | | ?# = ! ! !% %= / | | ?# != ! [ ! == [! | | | ?# ###"""" """"######"" [ % """""" | | ?######?#""" """#????#" *! = # # """" | +----------------------------------------------------+ Best States ------------- Heat Dissipation 60 Energy Generation 18 Energy Capacity 1590 Matter Stores 900 Matter Capacity 900 Sight Range 20 Terrain Scan Density 10 Armor Coverage 375 Resistance: KI 41 Evasion (%) 40 Core Analysis 6 Recoil Reduction 4 Item Schematics ----------------- Huge Storage Unit | -10/Materials | Hacked Core Analyzer | -8/Recycling | Hacked Robot Schematics ------------------ M-13 Machinist | -10/Materials | Hacked Fabricated ------------ Nothing Repaired ---------- Lgt. Treads | 59% | -10/Materials Beamcaster | 74% | -8/Materials Lgt. Treads | 14% | -8/Storage Lgt. Treads | 16% | -8/Storage Lgt. Treads | 21% | -8/Storage Hrd. Medium Armor Plating | 74% | -8/Storage Studied --------- Hvy. Assault Rifle | -8/Materials | Hacked Lgt. Treads | -8/Materials | Hacked Rocket Launcher | -8/Materials | Hacked Alien Tech Used ----------------- None Achievements -------------- None Challenges ------------ None Game ------ Seed SapperHardenedMagmablaster Manual? 0 Play Time 01:16:37 Cumulative 595.2 hours Start 2026.08.31 @ 11:41:56 End 2026.08.31 @ 13:03:48 Sessions 1 Manual Loads 0 Difficulty Rogue Special Mode None Game No. 334 Rogue 334 Adventurer 0 Explorer 0 Win Type - Total 40 Types 20/2/8/2/1/1/1/2/1/2 Lore% 97 Gallery% 93 Achievement% 88 Wizard Run 0 Options --------- Layout 1 ASCII 0 Keyboard 0 Movement Numpad Keybinds 0 Fullscreen 1 Font 24/Proggy Map View 50x35 Zoom Use 0% Tactical HUD 0 Map Filters NONE Filters NONE Steam 1 RUN: f00dd192-6c5f-49d2-87f8-4bec4e3962fb